[Event "Betsys MČR v online bleskovém šachu 2021"]
[Site "Chess.com"]
[Date "2021.04.17"]
[Round "12"]
[White "Dejfos"]
[Black "JuliliaR"]
[Result "1-0"]
[WhiteElo "1768"]
[BlackElo "1483"]
[TimeControl "180+1"]
[EndTime "11:02:46 PDT"]
[Termination "Uživatel Dejfos zvítězil na čas"]

1. e4 {[%clk 0:02:30]} 1... d5 {[%clk 0:02:58]} 2. exd5 {[%clk 0:02:28.5]} 2...
Qxd5 {[%clk 0:02:57.6]} 3. Nc3 {[%clk 0:02:28.9]} 3... Qd6 {[%clk 0:02:57]} 4.
d4 {[%clk 0:02:29.2]} 4... c6 {[%clk 0:02:56.3]} 5. Nf3 {[%clk 0:02:28.7]} 5...
Nf6 {[%clk 0:02:54.9]} 6. Bc4 {[%clk 0:02:28.3]} 6... Bg4 {[%clk 0:02:55.3]} 7.
O-O {[%clk 0:02:27.2]} 7... e6 {[%clk 0:02:55.4]} 8. h3 {[%clk 0:02:21.5]} 8...
Bh5 {[%clk 0:02:54.6]} 9. Bg5 {[%clk 0:02:16.9]} 9... Nbd7 {[%clk 0:02:52.5]}
10. Be2 {[%clk 0:02:01.6]} 10... Qc7 {[%clk 0:02:50.6]} 11. Qd2 {[%clk
0:01:49.9]} 11... Bd6 {[%clk 0:02:50]} 12. Rfe1 {[%clk 0:01:33.8]} 12... O-O
{[%clk 0:02:49.2]} 13. Bxf6 {[%clk 0:01:24.3]} 13... Nxf6 {[%clk 0:02:47.5]} 14.
Ne5 {[%clk 0:01:21.9]} 14... Bxe2 {[%clk 0:02:42.4]} 15. Qxe2 {[%clk 0:01:20]}
15... Nd5 {[%clk 0:02:37.8]} 16. Nxd5 {[%clk 0:01:17.5]} 16... cxd5 {[%clk
0:02:36.8]} 17. c3 {[%clk 0:01:17]} 17... Rab8 {[%clk 0:02:31.4]} 18. Qh5 {[%clk
0:01:12.7]} 18... b5 {[%clk 0:02:26.3]} 19. Re3 {[%clk 0:01:07.3]} 19... f6
{[%clk 0:02:18.4]} 20. Ng4 {[%clk 0:00:58.4]} 20... Qf7 {[%clk 0:02:10.8]} 21.
Qxf7+ {[%clk 0:00:51.3]} 21... Kxf7 {[%clk 0:02:10.4]} 22. Nh2 {[%clk
0:00:51.7]} 22... b4 {[%clk 0:02:07.4]} 23. Nf3 {[%clk 0:00:46.6]} 23... bxc3
{[%clk 0:02:05.1]} 24. bxc3 {[%clk 0:00:46.1]} 24... Rfc8 {[%clk 0:01:58.7]} 25.
Nd2 {[%clk 0:00:45.7]} 25... Rb2 {[%clk 0:01:52.1]} 26. Nb3 {[%clk 0:00:42.1]}
26... Rc2 {[%clk 0:01:44.5]} 27. Rae1 {[%clk 0:00:39.8]} 27... e5 {[%clk
0:01:32.9]} 28. dxe5 {[%clk 0:00:34.5]} 28... fxe5 {[%clk 0:01:31.5]} 29. Rd1
{[%clk 0:00:29.3]} 29... Ke6 {[%clk 0:01:26.5]} 30. Nd4+ {[%clk 0:00:27]} 30...
Kf6 {[%clk 0:01:15.5]} 31. Nxc2 {[%clk 0:00:26.5]} 31... d4 {[%clk 0:01:08.1]}
32. Nxd4 {[%clk 0:00:14.3]} 32... exd4 {[%clk 0:01:06.2]} 33. cxd4 {[%clk
0:00:12.4]} 33... Rc2 {[%clk 0:01:02.9]} 34. d5 {[%clk 0:00:12.2]} 34... Kf7
{[%clk 0:00:54.3]} 35. Re6 {[%clk 0:00:12.1]} 35... Bc5 {[%clk 0:00:52.5]} 36.
Rf1 {[%clk 0:00:09.4]} 36... Rd2 {[%clk 0:00:49.4]} 37. Rc6 {[%clk 0:00:09.6]}
37... Rxd5 {[%clk 0:00:46.8]} 38. Rc1 {[%clk 0:00:09.6]} 38... Bb6 {[%clk
0:00:43.5]} 39. R6c3 {[%clk 0:00:07.4]} 39... Rd2 {[%clk 0:00:41.8]} 40. Rf3+
{[%clk 0:00:07.3]} 40... Ke6 {[%clk 0:00:35.1]} 41. a3 {[%clk 0:00:06.5]} 41...
Re2 {[%clk 0:00:30]} 42. Rc4 {[%clk 0:00:06.3]} 42... Kd5 {[%clk 0:00:26.7]} 43.
Rcf4 {[%clk 0:00:05.6]} 43... Re1+ {[%clk 0:00:24.7]} 44. Kh2 {[%clk 0:00:02.3]}
44... Bc7 {[%clk 0:00:24.6]} 45. Kg3 {[%clk 0:00:01.2]} 45... Bxf4+ {[%clk
0:00:23.4]} 46. Kxf4 {[%clk 0:00:01.2]} 46... Rc1 {[%clk 0:00:20]} 47. Rd3+
{[%clk 0:00:02.1]} 47... Kc4 {[%clk 0:00:18.5]} 48. Rd8 {[%clk 0:00:02.2]} 48...
Ra1 {[%clk 0:00:17]} 49. Rc8+ {[%clk 0:00:02.1]} 49... Kb3 {[%clk 0:00:15.9]}
50. Rg8 {[%clk 0:00:02.7]} 50... Kxa3 {[%clk 0:00:15.1]} 51. Rxg7 {[%clk
0:00:03.3]} 51... Kb2 {[%clk 0:00:13.9]} 52. Rxh7 {[%clk 0:00:03.8]} 52... a5
{[%clk 0:00:13.4]} 53. Ra7 {[%clk 0:00:04.4]} 53... a4 {[%clk 0:00:12.8]} 54. g4
{[%clk 0:00:05]} 54... a3 {[%clk 0:00:11.8]} 55. g5 {[%clk 0:00:05.2]} 55... a2
{[%clk 0:00:11.4]} 56. h4 {[%clk 0:00:05.7]} 56... Rc1 {[%clk 0:00:10]} 57.
Rxa2+ {[%clk 0:00:06.1]} 57... Kxa2 {[%clk 0:00:09.5]} 58. g6 {[%clk 0:00:06.4]}
58... Rc4+ {[%clk 0:00:09.3]} 59. Kg5 {[%clk 0:00:05.9]} 59... Rc8 {[%clk
0:00:08.9]} 60. h5 {[%clk 0:00:05.2]} 60... Kb3 {[%clk 0:00:08.1]} 61. h6 {[%clk
0:00:05.3]} 61... Kc4 {[%clk 0:00:07.9]} 62. g7 {[%clk 0:00:04.6]} 62... Rc5+
{[%clk 0:00:07.9]} 63. Kf6 {[%clk 0:00:04.2]} 63... Rc6+ {[%clk 0:00:07.9]} 64.
Kf7 {[%clk 0:00:03.5]} 64... Rc5 {[%clk 0:00:07.7]} 65. g8=Q {[%clk 0:00:01.9]}
65... Rf5+ {[%clk 0:00:07.5]} 66. Ke7+ {[%clk 0:00:01.1]} 66... Kd3 {[%clk
0:00:05.2]} 67. Qg4 {[%clk 0:00:01.5]} 67... Re5+ {[%clk 0:00:03.7]} 68. Kf7
{[%clk 0:00:01.1]} 68... Ra5 {[%clk 0:00:01.7]} 69. Qg6+ {[%clk 0:00:01.8]} 1-0

[Event "Betsys MČR v online bleskovém šachu 2021"]
[Site "Chess.com"]
[Date "2021.04.17"]
[Round "12"]
[White "masodj"]
[Black "Pokemonchess"]
[Result "0-1"]
[WhiteElo "1728"]
[BlackElo "1957"]
[TimeControl "180+1"]
[EndTime "11:02:57 PDT"]
[Termination "Uživatel Pokemonchess zvítězil po vzdání soupeře"]

1. e4 {[%clk 0:03:00.9]} 1... c5 {[%clk 0:02:59.2]} 2. d4 {[%clk 0:03:00.3]}
2... cxd4 {[%clk 0:02:58.5]} 3. c3 {[%clk 0:03:00.2]} 3... d3 {[%clk 0:02:57.4]}
4. Bxd3 {[%clk 0:02:59.5]} 4... g6 {[%clk 0:02:57.2]} 5. c4 {[%clk 0:02:59.8]}
5... Bg7 {[%clk 0:02:57]} 6. Nc3 {[%clk 0:03:00.3]} 6... Nc6 {[%clk 0:02:57.2]}
7. Nf3 {[%clk 0:02:59.5]} 7... d6 {[%clk 0:02:56.4]} 8. Bd2 {[%clk 0:02:59.6]}
8... Nf6 {[%clk 0:02:56.5]} 9. O-O {[%clk 0:02:57.6]} 9... Bg4 {[%clk
0:02:55.5]} 10. h3 {[%clk 0:02:54.8]} 10... Bxf3 {[%clk 0:02:55.1]} 11. Qxf3
{[%clk 0:02:54.5]} 11... Ne5 {[%clk 0:02:55.6]} 12. Qe2 {[%clk 0:02:53.8]} 12...
Nxd3 {[%clk 0:02:55.8]} 13. Qxd3 {[%clk 0:02:54]} 13... O-O {[%clk 0:02:56.6]}
14. f3 {[%clk 0:02:49.8]} 14... Nd7 {[%clk 0:02:51.7]} 15. b3 {[%clk 0:02:48.5]}
15... Nc5 {[%clk 0:02:48.7]} 16. Qe2 {[%clk 0:02:39.6]} 16... a5 {[%clk
0:02:41.9]} 17. Rac1 {[%clk 0:02:34.8]} 17... Qd7 {[%clk 0:02:32.5]} 18. Be3
{[%clk 0:02:27.7]} 18... Ne6 {[%clk 0:02:29.4]} 19. Nd5 {[%clk 0:02:25.8]} 19...
Ra6 {[%clk 0:02:18.9]} 20. Rfd1 {[%clk 0:02:20.3]} 20... Rc6 {[%clk 0:02:06.7]}
21. Qd2 {[%clk 0:02:07.7]} 21... Re8 {[%clk 0:01:44.7]} 22. Bh6 {[%clk
0:02:04.6]} 22... Nc7 {[%clk 0:01:37.6]} 23. Bxg7 {[%clk 0:02:03.4]} 23... Kxg7
{[%clk 0:01:35.2]} 24. Qd4+ {[%clk 0:01:53.2]} 24... Kg8 {[%clk 0:01:33]} 25.
Ne3 {[%clk 0:01:33.4]} 25... Ne6 {[%clk 0:01:30.9]} 26. Qb2 {[%clk 0:01:31.1]}
26... Qd8 {[%clk 0:01:29.7]} 27. Ng4 {[%clk 0:01:30.5]} 27... Qb6+ {[%clk
0:01:29.2]} 28. Kh1 {[%clk 0:01:29.1]} 28... f6 {[%clk 0:01:28.8]} 29. Qe2
{[%clk 0:01:19.6]} 29... Rc5 {[%clk 0:01:23.1]} 30. Ne3 {[%clk 0:01:17.9]} 30...
Rh5 {[%clk 0:01:21.6]} 31. Kh2 {[%clk 0:01:14.5]} 31... Nf4 {[%clk 0:01:00.8]}
32. Qe1 {[%clk 0:01:06.9]} 32... Qc5 {[%clk 0:00:57.6]} 33. Nd5 {[%clk
0:01:02.3]} 33... Ne6 {[%clk 0:00:40.8]} 34. Qe3 {[%clk 0:00:54.2]} 34... Qc8
{[%clk 0:00:38.4]} 35. Nf4 {[%clk 0:00:49.6]} 35... Nxf4 {[%clk 0:00:35.9]} 36.
Qxf4 {[%clk 0:00:49.6]} 36... Qc5 {[%clk 0:00:35.5]} 37. Rd5 {[%clk 0:00:46.3]}
37... Rxd5 {[%clk 0:00:32]} 38. cxd5 {[%clk 0:00:45.8]} 38... Qa3 {[%clk
0:00:31.4]} 39. Rc7 {[%clk 0:00:40.9]} 39... b5 {[%clk 0:00:28.3]} 40. Qg4
{[%clk 0:00:39.2]} 40... Qb2 {[%clk 0:00:20.6]} 41. Qe6+ {[%clk 0:00:36.1]}
41... Kf8 {[%clk 0:00:19.7]} 42. Rc8 {[%clk 0:00:29.7]} 42... a4 {[%clk
0:00:15.5]} 43. Rxe8+ {[%clk 0:00:28.1]} 43... Kxe8 {[%clk 0:00:16]} 44. bxa4
{[%clk 0:00:27.7]} 44... bxa4 {[%clk 0:00:15.3]} 45. Qc8+ {[%clk 0:00:25.8]}
45... Kf7 {[%clk 0:00:15.3]} 46. Qe6+ {[%clk 0:00:25.8]} 46... Kf8 {[%clk
0:00:14.7]} 47. Qc8+ {[%clk 0:00:25.5]} 47... Kg7 {[%clk 0:00:15]} 48. Qe6
{[%clk 0:00:23.5]} 48... Qe5+ {[%clk 0:00:14.7]} 49. Qxe5 {[%clk 0:00:22.1]}
49... dxe5 {[%clk 0:00:15]} 50. Kg1 {[%clk 0:00:21.5]} 50... Kf7 {[%clk
0:00:14]} 51. Kf1 {[%clk 0:00:21.6]} 51... e6 {[%clk 0:00:14.4]} 52. Ke2 {[%clk
0:00:21.8]} 52... Ke7 {[%clk 0:00:14.5]} 53. dxe6 {[%clk 0:00:20.8]} 53... Kxe6
{[%clk 0:00:14.7]} 54. Kd3 {[%clk 0:00:21]} 54... f5 {[%clk 0:00:13.9]} 55. Kc4
{[%clk 0:00:19.8]} 55... Kf6 {[%clk 0:00:13.4]} 56. Kb4 {[%clk 0:00:19.8]} 56...
Kg5 {[%clk 0:00:13.8]} 57. Kxa4 {[%clk 0:00:16.5]} 57... fxe4 {[%clk 0:00:13.6]}
58. fxe4 {[%clk 0:00:15.7]} 58... Kf4 {[%clk 0:00:14.1]} 59. Kb5 {[%clk
0:00:13.2]} 59... Kxe4 {[%clk 0:00:14.3]} 60. a4 {[%clk 0:00:13.3]} 60... Kd3
{[%clk 0:00:14]} 61. a5 {[%clk 0:00:13.5]} 61... e4 {[%clk 0:00:14.6]} 62. a6
{[%clk 0:00:14]} 62... e3 {[%clk 0:00:15]} 63. a7 {[%clk 0:00:14.7]} 63... e2
{[%clk 0:00:15.4]} 64. a8=Q {[%clk 0:00:15.6]} 64... e1=Q {[%clk 0:00:15.5]} 65.
Qd8+ {[%clk 0:00:16.5]} 65... Ke2 {[%clk 0:00:15.4]} 66. Qe8+ {[%clk 0:00:15.7]}
66... Kf1 {[%clk 0:00:15.5]} 67. Qf8+ {[%clk 0:00:14.5]} 67... Qf2 {[%clk
0:00:14]} 68. Qd6 {[%clk 0:00:11.6]} 68... Kxg2 {[%clk 0:00:12.2]} 69. Qd5+
{[%clk 0:00:11.1]} 69... Qf3 {[%clk 0:00:12.3]} 70. Qd2+ {[%clk 0:00:10.4]}
70... Kg3 {[%clk 0:00:12]} 71. Qd6+ {[%clk 0:00:09.9]} 71... Kxh3 {[%clk
0:00:11.9]} 72. Qe6+ {[%clk 0:00:09.3]} 72... Qg4 {[%clk 0:00:12.4]} 73. Qe3+
{[%clk 0:00:08]} 73... Kh4 {[%clk 0:00:12.7]} 74. Qf2+ {[%clk 0:00:07.7]} 74...
Kh5 {[%clk 0:00:12.1]} 75. Qh2+ {[%clk 0:00:07.6]} 75... Kg5 {[%clk 0:00:12.5]}
76. Qd2+ {[%clk 0:00:07.4]} 76... Kf6 {[%clk 0:00:11.6]} 77. Qd6+ {[%clk
0:00:07.1]} 77... Kg7 {[%clk 0:00:11.6]} 78. Qe7+ {[%clk 0:00:06.6]} 78... Kh6
{[%clk 0:00:12.2]} 79. Qf8+ {[%clk 0:00:06.3]} 79... Kh5 {[%clk 0:00:12.8]} 80.
Qc5+ {[%clk 0:00:05.5]} 80... Qg5 {[%clk 0:00:12.6]} 81. Qxg5+ {[%clk
0:00:05.1]} 81... Kxg5 {[%clk 0:00:13.5]} 0-1

[Event "Betsys MČR v online bleskovém šachu 2021"]
[Site "Chess.com"]
[Date "2021.04.17"]
[Round "12"]
[White "elftom"]
[Black "Ehlundi"]
[Result "1-0"]
[WhiteElo "1969"]
[BlackElo "1755"]
[TimeControl "180+1"]
[EndTime "11:03:12 PDT"]
[Termination "Uživatel elftom zvítězil na čas"]

1. c4 {[%clk 0:02:59.4]} 1... e5 {[%clk 0:02:59.6]} 2. Nc3 {[%clk 0:02:58.9]}
2... Nf6 {[%clk 0:02:59.9]} 3. g3 {[%clk 0:02:58.5]} 3... Bc5 {[%clk 0:02:59.9]}
4. Bg2 {[%clk 0:02:57.6]} 4... O-O {[%clk 0:02:59.8]} 5. e3 {[%clk 0:02:57.5]}
5... Nc6 {[%clk 0:02:59.9]} 6. Nf3 {[%clk 0:02:57.4]} 6... d6 {[%clk 0:02:59.5]}
7. O-O {[%clk 0:02:56.9]} 7... Bg4 {[%clk 0:02:59.5]} 8. h3 {[%clk 0:02:56.8]}
8... Bh5 {[%clk 0:02:59.8]} 9. g4 {[%clk 0:02:56.8]} 9... Bg6 {[%clk 0:03:00.1]}
10. d4 {[%clk 0:02:32.9]} 10... exd4 {[%clk 0:02:51.9]} 11. exd4 {[%clk
0:02:32.5]} 11... Bb4 {[%clk 0:02:51.4]} 12. Bg5 {[%clk 0:02:28.1]} 12... h6
{[%clk 0:02:47.9]} 13. Bxf6 {[%clk 0:02:27.3]} 13... Qxf6 {[%clk 0:02:45.3]} 14.
Nd5 {[%clk 0:02:26.9]} 14... Qd8 {[%clk 0:02:30.3]} 15. a3 {[%clk 0:02:05.8]}
15... Ba5 {[%clk 0:02:30.1]} 16. b4 {[%clk 0:02:05]} 16... Bb6 {[%clk
0:02:30.4]} 17. c5 {[%clk 0:02:04.5]} 17... dxc5 {[%clk 0:02:30.6]} 18. dxc5
{[%clk 0:02:03.7]} 18... Ne7 {[%clk 0:02:26.6]} 19. Nxe7+ {[%clk 0:02:01.8]}
19... Qxe7 {[%clk 0:02:26]} 20. cxb6 {[%clk 0:02:00.4]} 20... cxb6 {[%clk
0:02:26.5]} 21. Qb3 {[%clk 0:01:51]} 21... h5 {[%clk 0:02:23.9]} 22. Rfe1 {[%clk
0:01:47.7]} 22... Qf6 {[%clk 0:02:19.7]} 23. g5 {[%clk 0:01:46.4]} 23... Qf4
{[%clk 0:02:12.6]} 24. Qe3 {[%clk 0:01:41.4]} 24... Qf5 {[%clk 0:02:10.7]} 25.
Nh4 {[%clk 0:01:39.6]} 25... Qc2 {[%clk 0:02:00.3]} 26. Rac1 {[%clk 0:01:38.6]}
26... Qd3 {[%clk 0:01:58.9]} 27. Qxd3 {[%clk 0:01:32.3]} 27... Bxd3 {[%clk
0:01:59.1]} 28. Rc7 {[%clk 0:01:31.4]} 28... Rac8 {[%clk 0:01:51.6]} 29. Ree7
{[%clk 0:01:30.3]} 29... Rxc7 {[%clk 0:01:51.5]} 30. Rxc7 {[%clk 0:01:29.7]}
30... Re8 {[%clk 0:01:40.4]} 31. Bd5 {[%clk 0:01:23.5]} 31... Re1+ {[%clk
0:01:35.5]} 32. Kg2 {[%clk 0:01:20.8]} 32... Be4+ {[%clk 0:01:32.6]} 33. Bxe4
{[%clk 0:01:20.4]} 33... Rxe4 {[%clk 0:01:32.7]} 34. Nf3 {[%clk 0:01:20.9]}
34... a5 {[%clk 0:01:26.1]} 35. bxa5 {[%clk 0:01:18.3]} 35... bxa5 {[%clk
0:01:26.4]} 36. Rxb7 {[%clk 0:01:18.8]} 36... Ra4 {[%clk 0:01:26.8]} 37. Rb3
{[%clk 0:01:12]} 37... f6 {[%clk 0:01:25.7]} 38. gxf6 {[%clk 0:00:54.8]} 38...
gxf6 {[%clk 0:01:25.4]} 39. Kg3 {[%clk 0:00:50.2]} 39... Kg7 {[%clk 0:01:24.6]}
40. Nh4 {[%clk 0:00:50]} 40... Kh6 {[%clk 0:01:23.6]} 41. f4 {[%clk 0:00:49.7]}
41... Rd4 {[%clk 0:01:16.8]} 42. Kf3 {[%clk 0:00:48.6]} 42... Rc4 {[%clk
0:01:09.5]} 43. Nf5+ {[%clk 0:00:38.1]} 43... Kg6 {[%clk 0:01:07.6]} 44. Ne3
{[%clk 0:00:37.7]} 44... Rd4 {[%clk 0:01:03.5]} 45. Rc3 {[%clk 0:00:24.7]} 45...
Ra4 {[%clk 0:01:01.4]} 46. h4 {[%clk 0:00:21.5]} 46... Rd4 {[%clk 0:00:57.6]}
47. f5+ {[%clk 0:00:21.4]} 47... Kh6 {[%clk 0:00:53.7]} 48. Kg3 {[%clk
0:00:20.9]} 48... Re4 {[%clk 0:00:51]} 49. Nd5 {[%clk 0:00:19.1]} 49... Re5
{[%clk 0:00:47.4]} 50. Nxf6 {[%clk 0:00:16.7]} 50... Rxf5 {[%clk 0:00:47.4]} 51.
Rc6 {[%clk 0:00:17]} 51... Kg7 {[%clk 0:00:45]} 52. Ne4 {[%clk 0:00:16.6]} 52...
Re5 {[%clk 0:00:41.9]} 53. Kf4 {[%clk 0:00:16.2]} 53... Rb5 {[%clk 0:00:40.3]}
54. Rc5 {[%clk 0:00:13]} 54... Rb3 {[%clk 0:00:34.7]} 55. Rxa5 {[%clk
0:00:12.8]} 55... Kh6 {[%clk 0:00:35.1]} 56. a4 {[%clk 0:00:12]} 56... Rb1
{[%clk 0:00:33]} 57. Ra6+ {[%clk 0:00:11.9]} 57... Kg7 {[%clk 0:00:32.1]} 58. a5
{[%clk 0:00:12.1]} 58... Ra1 {[%clk 0:00:26.6]} 59. Kg5 {[%clk 0:00:11.5]} 59...
Ra4 {[%clk 0:00:25.1]} 60. Nf6 {[%clk 0:00:10.6]} 60... Rd4 {[%clk 0:00:17.1]}
61. Ra7+ {[%clk 0:00:10.2]} 61... Kf8 {[%clk 0:00:16]} 62. Nxh5 {[%clk
0:00:10.7]} 62... Rd5+ {[%clk 0:00:15.5]} 63. Kg6 {[%clk 0:00:10.1]} 63... Rd6+
{[%clk 0:00:15.8]} 64. Nf6 {[%clk 0:00:09.7]} 64... Rc6 {[%clk 0:00:12.5]} 65.
h5 {[%clk 0:00:09.6]} 65... Rc1 {[%clk 0:00:11.4]} 66. h6 {[%clk 0:00:09]} 66...
Rg1+ {[%clk 0:00:11.2]} 67. Kf5 {[%clk 0:00:08.9]} 67... Rf1+ {[%clk 0:00:11.2]}
68. Ke5 {[%clk 0:00:08.4]} 68... Re1+ {[%clk 0:00:11.5]} 69. Ne4 {[%clk
0:00:07.7]} 69... Kg8 {[%clk 0:00:10.4]} 70. h7+ {[%clk 0:00:07.7]} 70... Kh8
{[%clk 0:00:10.4]} 71. Ra8+ {[%clk 0:00:05.1]} 71... Kxh7 {[%clk 0:00:10.1]} 72.
a6 {[%clk 0:00:05.8]} 72... Ra1 {[%clk 0:00:09.3]} 73. a7 {[%clk 0:00:06]} 73...
Kg7 {[%clk 0:00:09.6]} 74. Kd6 {[%clk 0:00:05.4]} 74... Rd1+ {[%clk 0:00:07.3]}
75. Kc6 {[%clk 0:00:05.1]} 75... Rc1+ {[%clk 0:00:07.4]} 76. Nc5 {[%clk
0:00:06]} 76... Ra1 {[%clk 0:00:05.4]} 77. Kb7 {[%clk 0:00:05.7]} 77... Rb1+
{[%clk 0:00:05]} 78. Kc6 {[%clk 0:00:06.4]} 78... Ra1 {[%clk 0:00:05.1]} 79. Nd7
{[%clk 0:00:06.5]} 79... Rc1+ {[%clk 0:00:04.4]} 80. Kb7 {[%clk 0:00:06.7]}
80... Rb1+ {[%clk 0:00:04.6]} 81. Nb6 {[%clk 0:00:07.3]} 81... Ra1 {[%clk
0:00:03.5]} 82. Rc8 {[%clk 0:00:07.9]} 1-0

[Event "Betsys MČR v online bleskovém šachu 2021"]
[Site "Chess.com"]
[Date "2021.04.17"]
[Round "12"]
[White "Lunaticx"]
[Black "berny643"]
[Result "1-0"]
[WhiteElo "2987"]
[BlackElo "2579"]
[TimeControl "180+1"]
[EndTime "11:03:15 PDT"]
[Termination "Uživatel Lunaticx zvítězil na čas"]

1. d4 {[%clk 0:03:00.9]} 1... Nf6 {[%clk 0:02:58.2]} 2. c4 {[%clk 0:03:00.4]}
2... e6 {[%clk 0:02:58.1]} 3. Nf3 {[%clk 0:03:00.8]} 3... b6 {[%clk 0:02:55.5]}
4. g3 {[%clk 0:03:00.3]} 4... Bb4+ {[%clk 0:02:54.5]} 5. Bd2 {[%clk 0:02:59.5]}
5... Be7 {[%clk 0:02:52]} 6. Bg2 {[%clk 0:02:56.9]} 6... d5 {[%clk 0:02:51.2]}
7. cxd5 {[%clk 0:02:52.2]} 7... exd5 {[%clk 0:02:49.7]} 8. O-O {[%clk
0:02:52.2]} 8... O-O {[%clk 0:02:49.3]} 9. Bf4 {[%clk 0:02:48.4]} 9... Be6
{[%clk 0:02:44.3]} 10. Nc3 {[%clk 0:02:47]} 10... c5 {[%clk 0:02:28.6]} 11. Ne5
{[%clk 0:02:43.6]} 11... c4 {[%clk 0:02:00.4]} 12. Nxc4 {[%clk 0:02:40.4]} 12...
Nc6 {[%clk 0:01:52.1]} 13. Ne5 {[%clk 0:02:34.8]} 13... Rc8 {[%clk 0:01:49.2]}
14. Rc1 {[%clk 0:02:28.4]} 14... Na5 {[%clk 0:01:38]} 15. h4 {[%clk 0:02:12.7]}
15... Bb4 {[%clk 0:01:31.4]} 16. e3 {[%clk 0:02:10.8]} 16... Bxc3 {[%clk
0:01:29]} 17. bxc3 {[%clk 0:02:08.1]} 17... Qe7 {[%clk 0:01:27.7]} 18. Rc2
{[%clk 0:01:41.8]} 18... Nd7 {[%clk 0:01:26.9]} 19. Nd3 {[%clk 0:01:36.4]} 19...
Qa3 {[%clk 0:01:23]} 20. Qc1 {[%clk 0:01:34.4]} 20... Qa4 {[%clk 0:01:21.5]} 21.
Nb4 {[%clk 0:01:26.5]} 21... Nf6 {[%clk 0:01:14.6]} 22. Qd2 {[%clk 0:01:13.2]}
22... Rc4 {[%clk 0:01:02]} 23. Nd3 {[%clk 0:01:10.8]} 23... Bf5 {[%clk
0:00:58.3]} 24. Rfc1 {[%clk 0:01:06.6]} 24... Ne4 {[%clk 0:00:47.8]} 25. Qe2
{[%clk 0:00:55.7]} 25... Rfc8 {[%clk 0:00:42.4]} 26. Nb2 {[%clk 0:00:55.1]}
26... Qxa2 {[%clk 0:00:30.5]} 27. Nxc4 {[%clk 0:00:52.1]} 27... Qxc4 {[%clk
0:00:30]} 28. Qe1 {[%clk 0:00:45]} 28... Nb3 {[%clk 0:00:28.5]} 29. Rd1 {[%clk
0:00:40.2]} 29... Nxc3 {[%clk 0:00:28.1]} 30. e4 {[%clk 0:00:30.2]} 30... Bxe4
{[%clk 0:00:24]} 31. Bxe4 {[%clk 0:00:26]} 31... dxe4 {[%clk 0:00:24.2]} 32. Bd2
{[%clk 0:00:26.1]} 32... Nxd2 {[%clk 0:00:16.4]} 33. Qxd2 {[%clk 0:00:23.7]}
33... b5 {[%clk 0:00:17]} 34. d5 {[%clk 0:00:23.1]} 34... b4 {[%clk 0:00:17.6]}
35. d6 {[%clk 0:00:23.7]} 35... h6 {[%clk 0:00:15.7]} 36. d7 {[%clk 0:00:22.9]}
36... Rd8 {[%clk 0:00:16]} 37. Ra1 {[%clk 0:00:21.8]} 37... Qc5 {[%clk
0:00:15.2]} 38. Qe3 {[%clk 0:00:21.6]} 38... Qxe3 {[%clk 0:00:12.8]} 39. fxe3
{[%clk 0:00:22.5]} 39... Rxd7 {[%clk 0:00:13.3]} 40. Rb2 {[%clk 0:00:23.1]}
40... Rb7 {[%clk 0:00:13.8]} 41. Ra5 {[%clk 0:00:23.3]} 41... Kh7 {[%clk
0:00:13.3]} 42. h5 {[%clk 0:00:22.9]} 42... Nd1 {[%clk 0:00:13.5]} 43. Rb3
{[%clk 0:00:22.2]} 43... Nc3 {[%clk 0:00:14.1]} 44. Rc5 {[%clk 0:00:22]} 44...
Rd7 {[%clk 0:00:12.9]} 45. Rxb4 {[%clk 0:00:21.3]} 45... Rd3 {[%clk 0:00:13.5]}
46. Kf2 {[%clk 0:00:16.1]} 46... Nd1+ {[%clk 0:00:11.8]} 47. Ke2 {[%clk
0:00:16.3]} 47... Nxe3 {[%clk 0:00:11.5]} 48. Rxe4 {[%clk 0:00:16]} 48... Rd5
{[%clk 0:00:08]} 49. Rc7 {[%clk 0:00:12.8]} 49... Nf5 {[%clk 0:00:07.6]} 50. Kf2
{[%clk 0:00:11.1]} 50... Nd6 {[%clk 0:00:07.1]} 51. Re2 {[%clk 0:00:08.4]} 51...
Rxh5 {[%clk 0:00:07.1]} 52. Rd7 {[%clk 0:00:08.5]} 52... Rf5+ {[%clk 0:00:02.8]}
53. Kg2 {[%clk 0:00:08.4]} 53... Rf6 {[%clk 0:00:03.7]} 54. Rd2 {[%clk
0:00:07.9]} 54... Nf5 {[%clk 0:00:04]} 55. Re2 {[%clk 0:00:07.7]} 55... Nd6
{[%clk 0:00:03.8]} 56. Rxa7 {[%clk 0:00:07.8]} 56... Nf5 {[%clk 0:00:02.5]} 57.
Re5 {[%clk 0:00:07.8]} 57... Nd4 {[%clk 0:00:02.5]} 58. Rd7 {[%clk 0:00:07.5]}
58... Ne6 {[%clk 0:00:02.8]} 59. Ra5 {[%clk 0:00:07.7]} 59... Ng5 {[%clk
0:00:02.8]} 60. Raa7 {[%clk 0:00:07.4]} 60... Kg6 {[%clk 0:00:03.2]} 61. Rd8
{[%clk 0:00:07.8]} 61... Kh7 {[%clk 0:00:03.7]} 62. Raa8 {[%clk 0:00:08]} 62...
Kg6 {[%clk 0:00:04.4]} 63. Rh8 {[%clk 0:00:08.5]} 63... Kh5 {[%clk 0:00:04]} 64.
Ra2 {[%clk 0:00:09.4]} 64... Kg6 {[%clk 0:00:04.5]} 65. Ra4 {[%clk 0:00:09.5]}
65... Re6 {[%clk 0:00:05]} 66. Ra2 {[%clk 0:00:09.4]} 66... Rf6 {[%clk 0:00:05]}
67. Rc8 {[%clk 0:00:10]} 67... Re6 {[%clk 0:00:05.4]} 68. Rc4 {[%clk 0:00:10.2]}
68... Rf6 {[%clk 0:00:05.8]} 69. Rd4 {[%clk 0:00:10.6]} 69... Re6 {[%clk
0:00:06.3]} 70. Rf2 {[%clk 0:00:10.4]} 70... Rc6 {[%clk 0:00:05.8]} 71. Rdf4
{[%clk 0:00:09.8]} 71... Re6 {[%clk 0:00:05.9]} 72. Rc4 {[%clk 0:00:09.9]} 72...
Rd6 {[%clk 0:00:06]} 73. Rc5 {[%clk 0:00:10.3]} 73... Re6 {[%clk 0:00:06.2]} 74.
Ra5 {[%clk 0:00:10.2]} 74... Rd6 {[%clk 0:00:06.3]} 75. Rfa2 {[%clk 0:00:09.8]}
75... Kh7 {[%clk 0:00:04.1]} 76. Ra7 {[%clk 0:00:09.7]} 76... Rf6 {[%clk
0:00:03.9]} 77. R7a6 {[%clk 0:00:10.1]} 77... Rf5 {[%clk 0:00:04]} 78. R2a5
{[%clk 0:00:09.3]} 78... Rxa5 {[%clk 0:00:02.4]} 79. Rxa5 {[%clk 0:00:10.2]}
79... Kg6 {[%clk 0:00:02.9]} 80. Ra6+ {[%clk 0:00:10.3]} 80... Kh7 {[%clk
0:00:03.3]} 81. g4 {[%clk 0:00:09.7]} 81... Kg8 {[%clk 0:00:03.7]} 82. Kg3
{[%clk 0:00:09.9]} 82... Kh7 {[%clk 0:00:04.3]} 83. Kf4 {[%clk 0:00:10.5]} 83...
Kg8 {[%clk 0:00:05]} 84. Kf5 {[%clk 0:00:10.9]} 84... Kh7 {[%clk 0:00:05.6]} 85.
Ra8 {[%clk 0:00:11.3]} 85... Ne6 {[%clk 0:00:03.5]} 86. Rb8 {[%clk 0:00:10.7]}
86... Ng5 {[%clk 0:00:04]} 87. Rf8 {[%clk 0:00:10.8]} 1-0